[Event "Titled Tuesday Blitz January 31 Late 2023"]
[White "Kazakouski, Valery"]
[Black "Bjelobrk, Igor"]
[WhiteFideId "13507443"]
[BlackFideId "4300726"]
[WhiteElo "2539"]
[BlackElo "2403"]
[Result "1-0"]
[Round "09"]
[TimeControl "180+2"]
[Date "2023.01.31"]
[WhiteClock "0:00:16"]
[BlackClock "0:00:14"]

1. Nf3 {[%clk 0:02:57]}  Nf6 {[%clk 0:02:56]} 2. c4 {[%clk 0:02:57]}  e6 {[%clk 0:02:54]} 3. g3 {[%clk 0:02:57]}  d5 {[%clk 0:02:53]} 4. b3 {[%clk 0:02:58]}  Be7 {[%clk 0:02:44]} 5. Bg2 {[%clk 0:02:58]}  O-O {[%clk 0:02:44]} 6. O-O {[%clk 0:02:58]}  b6 {[%clk 0:02:43]} 7. Bb2 {[%clk 0:02:58]}  Bb7 {[%clk 0:02:39]} 8. Nc3 {[%clk 0:02:58]}  c5 {[%clk 0:02:34]} 9. e3 {[%clk 0:02:58]}  dxc4 {[%clk 0:02:28]} 10. bxc4 {[%clk 0:02:59]}  Nc6 {[%clk 0:02:28]} 11. Qe2 {[%clk 0:02:59]}  Qd7 {[%clk 0:02:23]} 12. Rad1 {[%clk 0:02:59]}  Rfd8 {[%clk 0:02:22]} 13. d3 {[%clk 0:02:59]}  Rac8 {[%clk 0:02:19]} 14. Ne1 {[%clk 0:02:58]}  a6 {[%clk 0:02:19]} 15. f4 {[%clk 0:02:58]}  Na5 {[%clk 0:02:16]} 16. a4 {[%clk 0:02:56]}  Bxg2 {[%clk 0:02:09]} 17. Kxg2 {[%clk 0:02:55]}  Ne8 {[%clk 0:02:01]} 18. g4 {[%clk 0:02:53]}  Nc7 {[%clk 0:01:56]} 19. Nf3 {[%clk 0:02:50]}  b5 {[%clk 0:01:53]} 20. axb5 {[%clk 0:02:49]}  axb5 {[%clk 0:01:53]} 21. cxb5 {[%clk 0:02:48]}  Nxb5 {[%clk 0:01:53]} 22. Ne4 {[%clk 0:02:48]}  Qb7 {[%clk 0:01:46]} 23. Ng3 {[%clk 0:02:14]}  c4 {[%clk 0:01:42]} 24. dxc4 {[%clk 0:02:15]}  Nxc4 {[%clk 0:01:41]} 25. Rxd8+ {[%clk 0:02:15]}  Bxd8 {[%clk 0:01:42]} 26. Bc1 {[%clk 0:02:15]}  Nc3 {[%clk 0:01:41]} 27. Qd3 {[%clk 0:02:15]}  Nd5 {[%clk 0:01:37]} 28. e4 {[%clk 0:02:12]}  Nb4 {[%clk 0:01:32]} 29. Qe2 {[%clk 0:02:11]}  Bb6 {[%clk 0:01:31]} 30. Rd1 {[%clk 0:02:09]}  h6 {[%clk 0:01:26]} 31. h4 {[%clk 0:02:08]}  Qc6 {[%clk 0:01:25]} 32. g5 {[%clk 0:02:07]}  hxg5 {[%clk 0:01:25]} 33. hxg5 {[%clk 0:02:07]}  Nc2 {[%clk 0:01:22]} 34. Rd3 {[%clk 0:01:53]}  Nb4 {[%clk 0:01:09]} 35. Rd1 {[%clk 0:01:50]}  Nc2 {[%clk 0:01:08]} 36. Kh3 {[%clk 0:01:50]}  N2e3 {[%clk 0:01:08]} 37. Rd3 {[%clk 0:01:47]}  e5 {[%clk 0:00:47]} 38. Bxe3 {[%clk 0:01:27]}  Nxe3 {[%clk 0:00:46]} 39. Rxe3 {[%clk 0:01:27]}  exf4 {[%clk 0:00:39]} 40. Nf5 {[%clk 0:01:27]}  Qe6 {[%clk 0:00:35]} 41. Rd3 {[%clk 0:01:17]}  Bc5 {[%clk 0:00:30]} 42. Kg2 {[%clk 0:00:49]}  Re8 {[%clk 0:00:30]} 43. N3h4 {[%clk 0:00:28]}  g6 {[%clk 0:00:29]} 44. Nh6+ {[%clk 0:00:28]}  Kh7 {[%clk 0:00:30]} 45. Ng4 {[%clk 0:00:24]}  Be7 {[%clk 0:00:27]} 46. Rd5 {[%clk 0:00:24]}  Bd8 {[%clk 0:00:20]} 47. Qf3 {[%clk 0:00:22]}  Kg7 {[%clk 0:00:18]} 48. Qxf4 {[%clk 0:00:22]}  Rh8 {[%clk 0:00:18]} 49. Nf3 {[%clk 0:00:20]}  Qc8 {[%clk 0:00:17]} 50. Qe5+ {[%clk 0:00:20]}  Kg8 {[%clk 0:00:16]} 51. Nh6+ {[%clk 0:00:17]}  Kh7 {[%clk 0:00:14]} 52. Qxh8+ {[%clk 0:00:15]}  Kxh8 {[%clk 0:00:14]} 53. Rxd8+ {[%clk 0:00:16]} 1-0


[Site "https://www.chess.com"]

[Event "Titled Tuesday Blitz January 31 Late 2023"]
[White "Salimova, Nurgyul"]
[Black "Iskusnyh, Sergei"]
[WhiteFideId "2915138"]
[BlackFideId "4120027"]
[WhiteElo "2391"]
[BlackElo "2440"]
[Result "0-1"]
[Round "09"]
[TimeControl "180+2"]
[Date "2023.01.31"]
[WhiteClock "0:00:01"]
[BlackClock "0:00:55"]

1. d4 {[%clk 0:02:56]}  d5 {[%clk 0:02:59]} 2. Nf3 {[%clk 0:02:56]}  Nf6 {[%clk 0:02:59]} 3. c4 {[%clk 0:02:55]}  c6 {[%clk 0:02:58]} 4. Nc3 {[%clk 0:02:54]}  dxc4 {[%clk 0:02:57]} 5. e4 {[%clk 0:02:53]}  b5 {[%clk 0:02:50]} 6. e5 {[%clk 0:02:53]}  Nd5 {[%clk 0:02:47]} 7. a4 {[%clk 0:02:53]}  e6 {[%clk 0:02:46]} 8. Be2 {[%clk 0:02:53]}  Be7 {[%clk 0:02:45]} 9. O-O {[%clk 0:02:53]}  O-O {[%clk 0:02:40]} 10. Ne4 {[%clk 0:02:54]}  Nd7 {[%clk 0:02:37]} 11. b3 {[%clk 0:02:27]}  cxb3 {[%clk 0:02:26]} 12. Qxb3 {[%clk 0:02:28]}  b4 {[%clk 0:01:58]} 13. Bg5 {[%clk 0:02:17]}  Bxg5 {[%clk 0:01:39]} 14. Nfxg5 {[%clk 0:02:17]}  h6 {[%clk 0:01:33]} 15. Nf3 {[%clk 0:02:12]}  a5 {[%clk 0:01:28]} 16. Rfc1 {[%clk 0:02:00]}  Bb7 {[%clk 0:01:26]} 17. Nd6 {[%clk 0:01:55]}  Qb6 {[%clk 0:01:25]} 18. Bd3 {[%clk 0:00:47]}  Ba6 {[%clk 0:01:24]} 19. Bb1 {[%clk 0:00:43]}  Nc3 {[%clk 0:01:20]} 20. Rxc3 {[%clk 0:00:25]}  bxc3 {[%clk 0:01:18]} 21. Qc2 {[%clk 0:00:26]}  f5 {[%clk 0:01:16]} 22. Ba2 {[%clk 0:00:21]}  c5 {[%clk 0:01:13]} 23. Bxe6+ {[%clk 0:00:20]}  Kh8 {[%clk 0:01:11]} 24. Bxd7 {[%clk 0:00:13]}  cxd4 {[%clk 0:01:11]} 25. Bxf5 {[%clk 0:00:12]}  Qb2 {[%clk 0:01:07]} 26. Rd1 {[%clk 0:00:06]}  Be2 {[%clk 0:01:03]} 27. Rxd4 {[%clk 0:00:01]}  Rxf5 {[%clk 0:00:55]} 0-1


[Site "https://www.chess.com"]

[Event "Titled Tuesday Blitz January 31 Late 2023"]
[White "Poltorak, Sebastian"]
[Black "Melkumyan, Hrant"]
[WhiteFideId "1199498"]
[BlackFideId "13302485"]
[WhiteElo "2354"]
[BlackElo "2645"]
[Result "0-1"]
[Round "09"]
[TimeControl "180+2"]
[Date "2023.01.31"]
[WhiteClock "0:00:13"]
[BlackClock "0:01:38"]

1. e4 {[%clk 0:03:00]}  e6 {[%clk 0:02:57]} 2. Nc3 {[%clk 0:02:59]}  d5 {[%clk 0:02:57]} 3. exd5 {[%clk 0:02:59]}  exd5 {[%clk 0:02:56]} 4. d4 {[%clk 0:03:00]}  Nf6 {[%clk 0:02:56]} 5. Bd3 {[%clk 0:03:01]}  Bd6 {[%clk 0:02:55]} 6. Bg5 {[%clk 0:02:59]}  c6 {[%clk 0:02:54]} 7. Nge2 {[%clk 0:02:59]}  Nbd7 {[%clk 0:02:53]} 8. Qd2 {[%clk 0:02:59]}  Nf8 {[%clk 0:02:52]} 9. O-O-O {[%clk 0:02:58]}  Ne6 {[%clk 0:02:53]} 10. Bh4 {[%clk 0:02:56]}  O-O {[%clk 0:02:46]} 11. Bg3 {[%clk 0:02:46]}  b5 {[%clk 0:02:44]} 12. Bf5 {[%clk 0:02:31]}  a5 {[%clk 0:02:38]} 13. Rde1 {[%clk 0:02:11]}  a4 {[%clk 0:02:38]} 14. Bxd6 {[%clk 0:01:45]}  Qxd6 {[%clk 0:02:37]} 15. Bxe6 {[%clk 0:01:46]}  Bxe6 {[%clk 0:02:34]} 16. Nf4 {[%clk 0:01:46]}  b4 {[%clk 0:02:33]} 17. Nb1 {[%clk 0:01:44]}  b3 {[%clk 0:02:28]} 18. axb3 {[%clk 0:01:42]}  axb3 {[%clk 0:02:29]} 19. c3 {[%clk 0:01:37]}  Ra1 {[%clk 0:02:28]} 20. Nxe6 {[%clk 0:01:35]}  fxe6 {[%clk 0:02:25]} 21. f3 {[%clk 0:01:35]}  Nd7 {[%clk 0:02:07]} 22. Qe3 {[%clk 0:01:26]}  e5 {[%clk 0:02:07]} 23. Rd1 {[%clk 0:01:07]}  exd4 {[%clk 0:01:47]} 24. Rxd4 {[%clk 0:00:59]}  Ne5 {[%clk 0:01:47]} 25. Qg5 {[%clk 0:00:19]}  h6 {[%clk 0:01:40]} 26. Qg3 {[%clk 0:00:18]}  c5 {[%clk 0:01:41]} 27. Rd2 {[%clk 0:00:15]}  Qf6 {[%clk 0:01:38]} 28. Re1 {[%clk 0:00:13]}  Qf5 {[%clk 0:01:38]} 0-1


[Site "https://www.chess.com"]

[Event "Titled Tuesday Blitz January 31 Late 2023"]
[White "Baskakov, Egor"]
[Black "Oro, Faustino"]
[WhiteFideId "24197866"]
[BlackFideId "20000197"]
[WhiteElo "2215"]
[BlackElo "2269"]
[Result "1/2-1/2"]
[Round "09"]
[TimeControl "180+2"]
[Date "2023.01.31"]
[WhiteClock "0:00:02"]
[BlackClock "0:00:02"]

1. e4 {[%clk 0:03:00]}  c5 {[%clk 0:02:57]} 2. Nf3 {[%clk 0:03:00]}  d6 {[%clk 0:02:56]} 3. d4 {[%clk 0:03:00]}  cxd4 {[%clk 0:02:57]} 4. Nxd4 {[%clk 0:03:00]}  Nf6 {[%clk 0:02:58]} 5. Nc3 {[%clk 0:03:01]}  a6 {[%clk 0:02:58]} 6. a4 {[%clk 0:03:01]}  e5 {[%clk 0:02:53]} 7. Nde2 {[%clk 0:03:01]}  Be7 {[%clk 0:02:53]} 8. g3 {[%clk 0:03:01]}  O-O {[%clk 0:02:53]} 9. Bg2 {[%clk 0:03:02]}  Be6 {[%clk 0:02:53]} 10. h3 {[%clk 0:03:02]}  Nbd7 {[%clk 0:02:53]} 11. O-O {[%clk 0:03:01]}  Qc7 {[%clk 0:02:50]} 12. g4 {[%clk 0:03:01]}  Rfc8 {[%clk 0:02:35]} 13. Ng3 {[%clk 0:03:00]}  Qc6 {[%clk 0:02:29]} 14. Nf5 {[%clk 0:02:57]}  Bf8 {[%clk 0:02:28]} 15. a5 {[%clk 0:02:49]}  Nc5 {[%clk 0:02:24]} 16. Re1 {[%clk 0:02:45]}  b6 {[%clk 0:02:11]} 17. Nd5 {[%clk 0:02:34]}  Bxd5 {[%clk 0:02:03]} 18. exd5 {[%clk 0:02:34]}  Qb7 {[%clk 0:02:03]} 19. axb6 {[%clk 0:02:32]}  Qxb6 {[%clk 0:02:04]} 20. b3 {[%clk 0:02:32]}  a5 {[%clk 0:02:01]} 21. Be3 {[%clk 0:02:27]}  Qc7 {[%clk 0:01:58]} 22. c4 {[%clk 0:02:12]}  Rcb8 {[%clk 0:01:57]} 23. Rb1 {[%clk 0:02:10]}  a4 {[%clk 0:01:50]} 24. bxa4 {[%clk 0:02:09]}  Rxb1 {[%clk 0:01:47]} 25. Qxb1 {[%clk 0:02:10]}  Nxa4 {[%clk 0:01:48]} 26. Qa2 {[%clk 0:02:04]}  Ra6 {[%clk 0:01:41]} 27. Qb3 {[%clk 0:02:00]}  Nc5 {[%clk 0:01:40]} 28. Qc2 {[%clk 0:01:59]}  Nfd7 {[%clk 0:01:36]} 29. Rb1 {[%clk 0:01:44]}  Ra3 {[%clk 0:01:33]} 30. Kh2 {[%clk 0:01:37]}  Na6 {[%clk 0:01:20]} 31. Rb5 {[%clk 0:01:29]}  Ndc5 {[%clk 0:01:18]} 32. Ng3 {[%clk 0:01:21]}  g6 {[%clk 0:01:17]} 33. Bg5 {[%clk 0:01:01]}  h6 {[%clk 0:01:12]} 34. Be3 {[%clk 0:00:59]}  Bg7 {[%clk 0:01:10]} 35. Qc1 {[%clk 0:00:59]}  Ra2 {[%clk 0:01:06]} 36. Qb1 {[%clk 0:00:56]}  Ra3 {[%clk 0:01:06]} 37. Qc2 {[%clk 0:00:48]}  Kh7 {[%clk 0:01:04]} 38. Ne4 {[%clk 0:00:47]}  Nd3 {[%clk 0:00:55]} 39. Rb3 {[%clk 0:00:36]}  Rxb3 {[%clk 0:00:54]} 40. Qxb3 {[%clk 0:00:36]}  Nf4 {[%clk 0:00:55]} 41. Qb5 {[%clk 0:00:34]}  Nb8 {[%clk 0:00:49]} 42. Bxf4 {[%clk 0:00:33]}  exf4 {[%clk 0:00:49]} 43. c5 {[%clk 0:00:33]}  Be5 {[%clk 0:00:46]} 44. Bf3 {[%clk 0:00:27]}  dxc5 {[%clk 0:00:37]} 45. Nxc5 {[%clk 0:00:27]}  Bd4 {[%clk 0:00:32]} 46. Ne4 {[%clk 0:00:27]}  Nd7 {[%clk 0:00:27]} 47. d6 {[%clk 0:00:23]}  Qd8 {[%clk 0:00:27]} 48. Qd5 {[%clk 0:00:22]}  Ne5 {[%clk 0:00:27]} 49. Kg2 {[%clk 0:00:19]}  Ba1 {[%clk 0:00:25]} 50. Nc5 {[%clk 0:00:15]}  Kg7 {[%clk 0:00:17]} 51. Nd3 {[%clk 0:00:15]}  Nxd3 {[%clk 0:00:17]} 52. Qxd3 {[%clk 0:00:16]}  Qd7 {[%clk 0:00:16]} 53. Qd5 {[%clk 0:00:13]}  Bf6 {[%clk 0:00:15]} 54. Qc5 {[%clk 0:00:13]}  Bd8 {[%clk 0:00:13]} 55. Bc6 {[%clk 0:00:13]}  Qe6 {[%clk 0:00:12]} 56. d7 {[%clk 0:00:12]}  Be7 {[%clk 0:00:11]} 57. Qc3+ {[%clk 0:00:12]}  Kh7 {[%clk 0:00:08]} 58. Qf3 {[%clk 0:00:05]}  Bf6 {[%clk 0:00:04]} 59. Ba4 {[%clk 0:00:04]}  Kg7 {[%clk 0:00:03]} 60. Qxf4 {[%clk 0:00:03]}  Qd5+ {[%clk 0:00:04]} 61. Qf3 {[%clk 0:00:04]}  Qxf3+ {[%clk 0:00:04]} 62. Kxf3 {[%clk 0:00:04]}  Bd8 {[%clk 0:00:05]} 63. Ke4 {[%clk 0:00:04]}  Kf8 {[%clk 0:00:06]} 64. f4 {[%clk 0:00:04]}  Ke7 {[%clk 0:00:06]} 65. g5 {[%clk 0:00:03]}  hxg5 {[%clk 0:00:06]} 66. fxg5 {[%clk 0:00:04]}  Kd6 {[%clk 0:00:06]} 67. Kf4 {[%clk 0:00:04]}  Ke7 {[%clk 0:00:05]} 68. Kg4 {[%clk 0:00:05]}  Bc7 {[%clk 0:00:06]} 69. Bb3 {[%clk 0:00:04]}  Be5 {[%clk 0:00:06]} 70. Bxf7 {[%clk 0:00:03]}  Kxd7 {[%clk 0:00:06]} 71. Bxg6 {[%clk 0:00:04]}  Ke7 {[%clk 0:00:07]} 72. Kf5 {[%clk 0:00:04]}  Ba1 {[%clk 0:00:07]} 73. h4 {[%clk 0:00:04]}  Kf8 {[%clk 0:00:08]} 74. h5 {[%clk 0:00:04]}  Kg7 {[%clk 0:00:08]} 75. h6+ {[%clk 0:00:05]}  Kh8 {[%clk 0:00:08]} 76. Be8 {[%clk 0:00:03]}  Bb2 {[%clk 0:00:08]} 77. g6 {[%clk 0:00:02]}  Ba1 {[%clk 0:00:09]} 78. Ke6 {[%clk 0:00:01]}  Kg8 {[%clk 0:00:06]} 79. Bb5 {[%clk 0:00:01]}  Bb2 {[%clk 0:00:06]} 80. Bc4 {[%clk 0:00:02]}  Kf8 {[%clk 0:00:02]} 1/2-1/2


[Site "https://www.chess.com"]

[Event "Titled Tuesday Blitz January 31 Late 2023"]
[White "Gubajdullin, Alexei"]
[Black "Borges Feria, Yasel"]
[WhiteFideId "4141202"]
[BlackFideId "3504921"]
[WhiteElo "2285"]
[BlackElo "2439"]
[Result "0-1"]
[Round "09"]
[TimeControl "180+2"]
[Date "2023.01.31"]
[WhiteClock "0:00:16"]
[BlackClock "0:00:22"]

1. d4 {[%clk 0:03:00]}  Nf6 {[%clk 0:02:59]} 2. Nf3 {[%clk 0:03:00]}  e6 {[%clk 0:02:59]} 3. Bf4 {[%clk 0:03:00]}  b6 {[%clk 0:02:57]} 4. e3 {[%clk 0:02:59]}  Bb7 {[%clk 0:02:58]} 5. h3 {[%clk 0:02:59]}  c5 {[%clk 0:02:53]} 6. Be2 {[%clk 0:02:57]}  Be7 {[%clk 0:02:50]} 7. O-O {[%clk 0:02:56]}  O-O {[%clk 0:02:50]} 8. a4 {[%clk 0:02:55]}  a6 {[%clk 0:02:48]} 9. Nbd2 {[%clk 0:02:48]}  Nc6 {[%clk 0:02:48]} 10. c3 {[%clk 0:02:46]}  d5 {[%clk 0:02:47]} 11. Ne5 {[%clk 0:02:45]}  Nxe5 {[%clk 0:02:41]} 12. Bxe5 {[%clk 0:02:45]}  Bd6 {[%clk 0:02:35]} 13. Bxd6 {[%clk 0:02:37]}  Qxd6 {[%clk 0:02:36]} 14. a5 {[%clk 0:02:37]}  b5 {[%clk 0:02:33]} 15. dxc5 {[%clk 0:02:36]}  Qxc5 {[%clk 0:02:32]} 16. Nb3 {[%clk 0:02:36]}  Qc7 {[%clk 0:02:31]} 17. Qd4 {[%clk 0:02:32]}  Rac8 {[%clk 0:02:28]} 18. Qb4 {[%clk 0:02:15]}  Rfd8 {[%clk 0:02:22]} 19. Rfd1 {[%clk 0:02:15]}  e5 {[%clk 0:02:20]} 20. Bf3 {[%clk 0:02:14]}  h6 {[%clk 0:02:16]} 21. Rd2 {[%clk 0:02:12]}  Qc4 {[%clk 0:02:11]} 22. Rad1 {[%clk 0:02:10]}  Rd7 {[%clk 0:02:04]} 23. e4 {[%clk 0:01:59]}  d4 {[%clk 0:01:58]} 24. Qa3 {[%clk 0:01:33]}  Bxe4 {[%clk 0:01:42]} 25. cxd4 {[%clk 0:01:23]}  Bxf3 {[%clk 0:01:38]} 26. gxf3 {[%clk 0:01:23]}  Re8 {[%clk 0:01:09]} 27. Rc1 {[%clk 0:00:41]}  Qe6 {[%clk 0:01:03]} 28. Nc5 {[%clk 0:00:40]}  Qc6 {[%clk 0:00:56]} 29. Nd3 {[%clk 0:00:31]}  Qxf3 {[%clk 0:00:51]} 30. Nxe5 {[%clk 0:00:29]}  Qxa3 {[%clk 0:00:52]} 31. bxa3 {[%clk 0:00:29]}  Rd6 {[%clk 0:00:47]} 32. Rc6 {[%clk 0:00:25]}  Red8 {[%clk 0:00:46]} 33. Rdc2 {[%clk 0:00:21]}  Rxd4 {[%clk 0:00:43]} 34. Rxa6 {[%clk 0:00:21]}  Re8 {[%clk 0:00:40]} 35. Nc6 {[%clk 0:00:20]}  Rd1+ {[%clk 0:00:35]} 36. Kg2 {[%clk 0:00:19]}  Nd5 {[%clk 0:00:36]} 37. Rb6 {[%clk 0:00:17]}  Nf4+ {[%clk 0:00:32]} 38. Kg3 {[%clk 0:00:17]}  g5 {[%clk 0:00:30]} 39. Nb4 {[%clk 0:00:17]}  Rg1+ {[%clk 0:00:25]} 40. Kf3 {[%clk 0:00:17]}  Nxh3 {[%clk 0:00:26]} 41. a6 {[%clk 0:00:16]}  g4# {[%clk 0:00:22]} 0-1


[Site "https://www.chess.com"]

[Event "Titled Tuesday Blitz January 31 Late 2023"]
[White "Lizak, Peter"]
[Black "Oganian, Miran"]
[WhiteFideId "731595"]
[BlackFideId "4122488"]
[WhiteElo "2411"]
[BlackElo "2439"]
[Result "0-1"]
[Round "09"]
[TimeControl "180+2"]
[Date "2023.01.31"]
[WhiteClock "0:00:03"]
[BlackClock "0:01:59"]

1. d4 {[%clk 0:03:00]}  e6 {[%clk 0:03:00]} 2. e4 {[%clk 0:02:59]}  d5 {[%clk 0:03:00]} 3. e5 {[%clk 0:02:59]}  c5 {[%clk 0:03:00]} 4. c3 {[%clk 0:02:59]}  Nc6 {[%clk 0:03:01]} 5. Nf3 {[%clk 0:03:00]}  Nh6 {[%clk 0:03:02]} 6. Bd3 {[%clk 0:02:58]}  Nf5 {[%clk 0:03:01]} 7. O-O {[%clk 0:02:56]}  cxd4 {[%clk 0:03:00]} 8. Bxf5 {[%clk 0:02:56]}  exf5 {[%clk 0:03:01]} 9. cxd4 {[%clk 0:02:56]}  Be6 {[%clk 0:03:02]} 10. Nc3 {[%clk 0:02:55]}  Be7 {[%clk 0:03:03]} 11. a3 {[%clk 0:02:51]}  g5 {[%clk 0:03:02]} 12. b4 {[%clk 0:02:49]}  h6 {[%clk 0:03:02]} 13. Ne1 {[%clk 0:02:43]}  Qb6 {[%clk 0:03:01]} 14. Nc2 {[%clk 0:02:40]}  Rc8 {[%clk 0:03:01]} 15. Na4 {[%clk 0:02:39]}  Qb5 {[%clk 0:03:00]} 16. Nc5 {[%clk 0:02:32]}  b6 {[%clk 0:02:55]} 17. Nxe6 {[%clk 0:02:11]}  fxe6 {[%clk 0:02:56]} 18. Qh5+ {[%clk 0:02:11]}  Kd7 {[%clk 0:02:56]} 19. a4 {[%clk 0:01:50]}  Qd3 {[%clk 0:02:55]} 20. b5 {[%clk 0:01:48]}  Na5 {[%clk 0:02:48]} 21. Ne3 {[%clk 0:01:41]}  Qxd4 {[%clk 0:02:42]} 22. Ba3 {[%clk 0:01:41]}  Rhe8 {[%clk 0:02:38]} 23. Bxe7 {[%clk 0:01:37]}  Rxe7 {[%clk 0:02:38]} 24. Qxh6 {[%clk 0:01:34]}  Qxe5 {[%clk 0:02:37]} 25. Qxg5 {[%clk 0:01:28]}  Rh8 {[%clk 0:02:36]} 26. Ng4 {[%clk 0:01:24]}  Qd6 {[%clk 0:02:28]} 27. Nf6+ {[%clk 0:01:21]}  Kc7 {[%clk 0:02:25]} 28. h4 {[%clk 0:01:10]}  Kb7 {[%clk 0:02:24]} 29. h5 {[%clk 0:01:01]}  Nc4 {[%clk 0:02:20]} 30. Rfe1 {[%clk 0:00:57]}  e5 {[%clk 0:02:14]} 31. Rad1 {[%clk 0:00:54]}  d4 {[%clk 0:02:13]} 32. Rc1 {[%clk 0:00:36]}  Qe6 {[%clk 0:02:07]} 33. Nd5 {[%clk 0:00:30]}  Reh7 {[%clk 0:02:03]} 34. Rxc4 {[%clk 0:00:29]}  Qxd5 {[%clk 0:02:03]} 35. Qc1 {[%clk 0:00:15]}  Rxh5 {[%clk 0:02:01]} 36. Rc7+ {[%clk 0:00:13]}  Kb8 {[%clk 0:02:02]} 37. f3 {[%clk 0:00:14]}  d3 {[%clk 0:02:00]} 38. Kf2 {[%clk 0:00:03]}  d2 {[%clk 0:01:59]} 0-1


[Site "https://www.chess.com"]

[Event "Titled Tuesday Blitz January 31 Late 2023"]
[White "Stoyanov, Tsvetan"]
[Black "Musovic, Armin"]
[WhiteFideId "2917173"]
[BlackFideId "939935"]
[WhiteElo "2454"]
[BlackElo "2261"]
[Result "1-0"]
[Round "09"]
[TimeControl "180+2"]
[Date "2023.01.31"]
[WhiteClock "0:00:07"]
[BlackClock "0:00:02"]

1. c4 {[%clk 0:03:00]}  c5 {[%clk 0:02:59]} 2. Nf3 {[%clk 0:03:00]}  Nf6 {[%clk 0:02:59]} 3. Nc3 {[%clk 0:03:00]}  g6 {[%clk 0:02:59]} 4. e3 {[%clk 0:02:55]}  Bg7 {[%clk 0:02:57]} 5. d4 {[%clk 0:02:54]}  cxd4 {[%clk 0:02:58]} 6. exd4 {[%clk 0:02:54]}  d5 {[%clk 0:02:58]} 7. cxd5 {[%clk 0:02:52]}  Nxd5 {[%clk 0:02:58]} 8. Bb5+ {[%clk 0:02:48]}  Nc6 {[%clk 0:02:57]} 9. O-O {[%clk 0:02:46]}  O-O {[%clk 0:02:55]} 10. h3 {[%clk 0:02:36]}  a6 {[%clk 0:02:48]} 11. Bc4 {[%clk 0:02:31]}  Nb6 {[%clk 0:02:40]} 12. Bb3 {[%clk 0:02:31]}  Na5 {[%clk 0:02:41]} 13. Bc2 {[%clk 0:02:27]}  Nd5 {[%clk 0:02:38]} 14. Re1 {[%clk 0:02:26]}  Nc6 {[%clk 0:02:16]} 15. Bg5 {[%clk 0:02:18]}  Bf6 {[%clk 0:02:13]} 16. Bh6 {[%clk 0:02:00]}  Re8 {[%clk 0:02:07]} 17. Bb3 {[%clk 0:01:53]}  Nxc3 {[%clk 0:01:45]} 18. bxc3 {[%clk 0:01:54]}  Na5 {[%clk 0:01:44]} 19. Bc2 {[%clk 0:01:48]}  Bd7 {[%clk 0:01:38]} 20. Ne5 {[%clk 0:01:44]}  Rc8 {[%clk 0:01:37]} 21. Qf3 {[%clk 0:01:39]}  Rc7 {[%clk 0:01:21]} 22. Rac1 {[%clk 0:01:18]}  Nc4 {[%clk 0:01:18]} 23. Nxc4 {[%clk 0:00:47]}  Rxc4 {[%clk 0:01:19]} 24. Qxb7 {[%clk 0:00:47]}  Rxc3 {[%clk 0:01:13]} 25. Qxa6 {[%clk 0:00:44]}  Qc8 {[%clk 0:01:03]} 26. Qe2 {[%clk 0:00:30]}  Bxd4 {[%clk 0:00:55]} 27. Bb3 {[%clk 0:00:29]}  Qc5 {[%clk 0:00:31]} 28. Rxc3 {[%clk 0:00:26]}  Qxc3 {[%clk 0:00:32]} 29. Rd1 {[%clk 0:00:22]}  e5 {[%clk 0:00:23]} 30. Rc1 {[%clk 0:00:18]}  Qa5 {[%clk 0:00:16]} 31. Qf3 {[%clk 0:00:14]}  Be6 {[%clk 0:00:15]} 32. Qf6 {[%clk 0:00:09]}  e4 {[%clk 0:00:03]} 33. Qxd4 {[%clk 0:00:08]}  f6 {[%clk 0:00:01]} 34. Qxf6 {[%clk 0:00:07]}  Qe1+ {[%clk 0:00:02]} 1-0


[Site "https://www.chess.com"]